bitfinex-derivatives/quotes_BTCF0:USTF0_20241104
["timestamp","ask_amount","ask_price","bid_price","bid_amount"]
[1730733073038,0.00219459,68379.0,68378.0,0.073163]
[1730733073232,0.073147,68394.0,68378.0,0.073163]
[1730733073233,0.1404701,68391.0,68390.0,0.07315]
[1730733073427,0.1404701,68391.0,68390.0,0.16140876]
[1730733073428,0.07315,68391.0,68390.0,0.16140876]
[1730733073622,0.2136201,68391.0,68390.0,0.24868026]
[1730733073834,0.2136201,68391.0,68390.0,0.24815501]
[1730733074135,0.83454601,68394.0,68390.0,0.1604215]
[1730733074337,0.433944,68396.0,68395.0,0.073144]
[1730733074636,0.0207444,68402.0,68401.0,0.073138]
[1730733074821,0.073135,68405.0,68404.0,0.073133]
[1730733075022,0.073135,68405.0,68404.0,0.14615618]
[1730733075220,0.073135,68405.0,68395.0,0.43463043]
[1730733075221,0.1404701,68407.0,68400.0,0.07302318]
[1730733075430,0.073117,68421.0,68409.0,0.07313]
[1730733075623,0.1506701,68424.0,68418.0,0.04374448]
[1730733075624,0.1404701,68424.0,68418.0,0.04374448]
[1730733075825,0.38131306,68422.0,68421.0,0.11686148]
[1730733076034,0.45442906,68422.0,68421.0,0.073117]
[1730733076644,0.3608,68422.0,68421.0,0.073117]
[1730733077338,0.3608,68422.0,68421.0,0.074117]
[1730733077543,0.3648,68422.0,68421.0,0.074117]
[1730733077835,0.3648,68422.0,68418.0,0.073119]
[1730733077836,0.437916,68422.0,68418.0,0.073119]
[1730733078033,0.3648,68422.0,68421.0,0.073117]
[1730733078228,0.3608,68422.0,68421.0,0.073117]
[1730733078424,0.002,68422.0,68421.0,0.073117]
[1730733078629,0.002,68422.0,68421.0,0.6520271]
[1730733078934,0.002,68422.0,68421.0,0.073117]
[1730733079330,0.075116,68422.0,68421.0,0.073117]
[1730733079532,0.073121,68418.0,68417.0,0.073121]
[1730733079932,0.073123,68416.0,68414.0,0.3608]
[1730733080129,0.073123,68416.0,68413.0,0.16088]
[1730733080328,0.073123,68416.0,68415.0,0.073123]
[1730733080544,0.5012701,68419.0,68413.0,0.16088]
[1730733080740,0.5012701,68419.0,68400.0,0.04355467]
[1730733080741,0.3608,68419.0,68418.0,0.07312]
[1730733081643,1.2612701,68419.0,68417.0,0.002]
[1730733081842,0.07312,68418.0,68417.0,0.002]
[1730733082837,1.2627101,68419.0,68413.0,0.002]
[1730733083043,1.2612701,68419.0,68418.0,0.07312]
[1730733083231,1.1208,68419.0,68418.0,0.07312]
[1730733084036,1.1208,68419.0,68418.0,0.07412]
[1730733084236,1.1208,68419.0,68418.0,0.001]
[1730733084438,1.193919,68419.0,68418.0,0.001]
[1730733084632,0.3618,68419.0,68407.0,0.16084]
[1730733084833,0.3618,68419.0,68418.0,0.07312]
[1730733084834,0.001,68419.0,68418.0,0.07312]
[1730733085146,0.76,68432.0,68431.0,0.073106]
[1730733085437,0.47404299,68434.0,68433.0,0.073104]
[1730733085642,0.47268299,68434.0,68433.0,0.073104]
[1730733086148,0.49371742,68434.0,68433.0,0.073104]
[1730733086336,0.49371742,68434.0,68418.0,0.3638]
[1730733086533,0.073116,68423.0,68422.0,0.073112]
[1730733086734,0.073116,68423.0,68420.0,0.16084]
[1730733086735,0.1404701,68427.0,68420.0,0.16084]
[1730733086939,0.073113,68425.0,68424.0,0.073112]
[1730733088243,0.073108,68429.0,68420.0,0.16084]
[1730733088542,0.073108,68429.0,68426.0,0.073111]
[1730733088749,0.073109,68428.0,68426.0,0.073111]
[1730733089042,0.0327,68431.0,68424.0,0.005]
[1730733089043,0.073112,68425.0,68424.0,0.005]
[1730733089343,0.3608,68426.0,68425.0,0.073112]
[1730733090130,0.05329832,68431.0,68429.0,0.073108]
[1730733090345,0.073107,68430.0,68429.0,0.073108]
[1730733091443,0.05329832,68431.0,68426.0,0.001]
[1730733091656,0.2135801,68427.0,68426.0,0.001]
[1730733092352,0.1404701,68427.0,68422.0,0.073115]
[1730733092648,0.3608,68424.0,68422.0,0.073115]
[1730733092850,0.3608,68424.0,68423.0,0.073115]
[1730733093353,0.3608,68424.0,68412.0,0.3012301]
[1730733093653,0.3608,68424.0,68423.0,0.073115]
[1730733093953,0.073118,68420.0,68419.0,0.073118]
[1730733094156,0.073118,68420.0,68412.0,0.3012301]
[1730733094157,0.38126001,68424.0,68423.0,0.073115]
[1730733094849,0.02046001,68424.0,68423.0,0.073115]
[1730733095051,0.004,68424.0,68423.0,0.073115]
[1730733095250,0.077113,68424.0,68423.0,0.073115]
[1730733095549,0.004,68424.0,68423.0,0.073115]
[1730733095750,0.3608,68426.0,68419.0,0.004]
[1730733095959,0.3608,68426.0,68425.0,0.073112]
[1730733096467,0.78217949,68427.0,68423.0,0.002]
[1730733096644,0.78073949,68427.0,68426.0,0.073111]
[1730733098246,0.02073949,68427.0,68426.0,0.073111]
[1730733098556,0.47404299,68434.0,68426.0,0.073111]
[1730733098557,0.47185,68434.0,68433.0,0.073104]
[1730733098856,0.47049,68434.0,68433.0,0.433904]
[1730733101359,0.47049,68434.0,68433.0,1.233104]
[1730733101360,0.47749,68434.0,68433.0,1.233104]
[1730733101657,0.42759,68434.0,68433.0,1.233104]
[1730733102953,0.42759,68434.0,68433.0,0.794704]
[1730733103362,0.42759,68434.0,68433.0,0.797704]
[1730733103752,0.42759,68434.0,68433.0,0.958464]
[1730733104257,0.42059,68434.0,68433.0,0.960464]
[1730733104759,0.42059,68434.0,68433.0,1.1009341]
[1730733106157,0.42059,68434.0,68433.0,1.0999341]
[1730733107161,0.42059,68434.0,68433.0,1.0989341]
[1730733108560,0.42059,68434.0,68433.0,1.0909741]
[1730733109571,0.42059,68434.0,68433.0,1.13452877]
[1730733109770,0.42059,68434.0,68433.0,1.0909741]
[1730733109962,0.10578497,68434.0,68433.0,1.5293741]
[1730733110468,0.10578497,68434.0,68433.0,1.14921975]
[1730733110666,0.10578497,68434.0,68433.0,0.950504]
[1730733111769,0.10578497,68434.0,68433.0,0.949504]
[1730733111969,0.10578497,68434.0,68433.0,1.0909741]
[1730733112271,0.10578497,68434.0,68433.0,1.0889741]
[1730733112476,0.10578497,68434.0,68433.0,1.13466028]
[1730733112975,0.10578497,68434.0,68433.0,1.13366028]
[1730733113771,0.10578497,68434.0,68433.0,1.13266028]
[1730733113975,0.17888797,68434.0,68433.0,1.13266028]
[1730733114172,0.17888797,68434.0,68433.0,1.0889741]
[1730733115270,0.17888797,68434.0,68433.0,1.0879741]
[1730733115569,0.17888797,68434.0,68433.0,1.0889741]
[1730733115973,0.17888797,68434.0,68433.0,1.0879741]
[1730733116275,0.17888797,68434.0,68433.0,0.586704]
[1730733116474,0.17888797,68434.0,68433.0,0.6304207]
[1730733116975,0.10578497,68434.0,68433.0,0.6304207]
[1730733117276,0.10578497,68434.0,68433.0,0.586704]
[1730733117668,0.10578497,68434.0,68433.0,0.7271741]
[1730733118173,0.10578497,68434.0,68433.0,0.433904]
[1730733118174,0.17988797,68434.0,68433.0,0.433904]
[1730733118663,0.17988797,68434.0,68433.0,0.3608]
[1730733118664,0.17888797,68434.0,68433.0,0.3608]
[1730733118865,0.90698497,68434.0,68426.0,0.04371913]
[1730733119072,0.90698497,68434.0,68422.0,0.05824565]
[1730733119073,0.073113,68424.0,68423.0,0.04371913]
[1730733119374,0.3608,68427.0,68418.0,0.05824565]
[1730733119677,0.3608,68427.0,68416.0,0.073121]
[1730733119678,0.073121,68417.0,68416.0,0.073121]
[1730733119874,0.433921,68417.0,68416.0,0.073121]
[1730733121171,0.3608,68417.0,68408.0,0.05824565]
[1730733121375,0.0635,68416.0,68406.0,0.3608]
[1730733121578,0.0635,68416.0,68409.0,0.073129]
[1730733121579,0.07313,68410.0,68409.0,0.073129]
[1730733123879,0.07413,68410.0,68409.0,0.077129]
[1730733124378,0.07413,68410.0,68409.0,0.091129]
[1730733124379,0.001,68410.0,68409.0,0.091129]
[1730733124580,0.0639,68430.0,68424.0,0.073113]
[1730733124786,0.5092701,68444.0,68426.0,0.5012701]
[1730733124787,0.0306,68437.0,68426.0,0.5012701]
[1730733124972,0.00940001,68444.0,68432.0,0.2135751]
[1730733125280,0.081092,68444.0,68432.0,0.5743751]
[1730733125475,0.081092,68444.0,68432.0,0.433905]
[1730733125476,0.3608,68442.0,68432.0,0.433905]
[1730733125680,0.5224051,68442.0,68433.0,0.073104]
[1730733125883,0.381935,68442.0,68433.0,0.073104]
[1730733126079,0.008,68444.0,68433.0,0.433904]
[1730733126277,0.008,68444.0,68433.0,0.872304]
[1730733127881,0.008,68444.0,68433.0,0.873304]
[1730733128080,0.008,68444.0,68433.0,0.93354965]
[1730733128280,0.02699097,68434.0,68433.0,0.93354965]
[1730733128481,0.02699097,68434.0,68433.0,0.875304]
[1730733128671,9.7e-07,68434.0,68433.0,0.875304]
[1730733129278,9.7e-07,68434.0,68433.0,0.8958237]
[1730733129480,9.7e-07,68434.0,68433.0,0.5156543]
[1730733129679,9.7e-07,68434.0,68433.0,0.4574237]
[1730733130373,9.7e-07,68434.0,68433.0,0.076104]
[1730733131379,0.43390397,68434.0,68433.0,0.003]
[1730733131688,0.073107,68432.0,68431.0,0.073105]
[1730733132174,0.833107,68432.0,68431.0,0.073105]
[1730733133484,0.03176097,68434.0,68425.0,0.0582306]
[1730733133676,0.03176097,68434.0,68419.0,0.3608]
[1730733133677,0.073136,68403.0,68402.0,0.00219278]
[1730733134069,0.6522061,68403.0,68402.0,0.00219278]
[1730733134776,0.6522061,68403.0,68381.0,0.0305]
[1730733134777,0.8790701,68403.0,68381.0,0.0305]
[1730733134983,0.1404701,68387.0,68386.0,0.073154]
[1730733136281,0.1404701,68387.0,68381.0,0.05062433]
[1730733136282,0.1404701,68391.0,68389.0,0.073151]
[1730733136483,0.07315,68390.0,68389.0,0.073151]
[1730733137284,0.07315,68390.0,68382.0,0.3608]
[1730733137285,0.1404701,68398.0,68388.0,0.3608]
[1730733137583,0.073143,68397.0,68396.0,0.073143]
[1730733138887,0.073143,68397.0,68396.0,0.087143]
[1730733140087,0.3608,68400.0,68399.0,0.07314]
[1730733140384,0.3608,68406.0,68402.0,0.073135]
[1730733140385,0.073136,68403.0,68402.0,0.073135]
[1730733140987,0.1404701,68410.0,68409.0,0.07313]
[1730733141190,0.00219365,68412.0,68411.0,0.073127]
[1730733142979,0.1404701,68420.0,68419.0,0.073119]
[1730733143290,0.3608,68423.0,68422.0,0.073116]
[1730733144796,0.79924,68423.0,68419.0,0.001]
[1730733145093,0.073122,68417.0,68416.0,0.073121]
[1730733145306,0.073122,68417.0,68401.0,0.15536]
[1730733145307,0.1404701,68417.0,68401.0,0.15536]
[1730733145594,0.21076019,68402.0,68401.0,0.15536]
[1730733145895,0.21076019,68402.0,68377.0,0.21076019]
[1730733145896,0.073156,68384.0,68372.0,0.08773351]
[1730733146092,0.28392619,68375.0,68352.0,0.3608]
[1730733146392,0.073179,68363.0,68360.0,0.073182]
[1730733146592,0.21076019,68368.0,68352.0,0.02036099]
[1730733146892,0.21076019,68368.0,68356.0,0.00076]
[1730733147095,0.21076019,68368.0,68357.0,0.073184]
[1730733147096,0.3608,68359.0,68357.0,0.073184]
[1730733147285,0.3608,68359.0,68358.0,0.073184]
[1730733147595,0.433983,68359.0,68358.0,0.073184]
[1730733149688,0.3608,68359.0,68358.0,0.076184]
[1730733149891,0.3618,68359.0,68358.0,0.090184]
[1730733151795,0.434983,68359.0,68358.0,0.090184]
[1730733153300,0.3618,68359.0,68358.0,0.090184]
[1730733154100,0.434983,68359.0,68358.0,0.017]
[1730733154897,0.873863,68359.0,68358.0,0.017]
[1730733155089,0.89462816,68359.0,68358.0,0.017]
[1730733155292,0.45574816,68359.0,68358.0,0.017]
[1730733156807,0.21076019,68361.0,68358.0,0.017]
[1730733156808,0.0016,68366.0,68365.0,0.073177]
[1730733156990,0.3608,68381.0,68372.0,0.073169]
[1730733157195,0.3608,68375.0,68372.0,0.073169]
[1730733157398,0.28391619,68384.0,68372.0,0.073169]
[1730733157399,0.02022796,68380.0,68372.0,0.073169]
[1730733157789,0.3608,68382.0,68372.0,0.073169]
[1730733157997,0.433959,68382.0,68372.0,0.073169]
[1730733158191,0.3608,68376.0,68372.0,0.073169]
[1730733158999,0.001,68373.0,68372.0,0.077169]
[1730733159699,0.434968,68373.0,68372.0,0.084169]
[1730733159905,0.873728,68373.0,68372.0,0.011]
[1730733160399,0.073181,68361.0,68360.0,0.073181]
[1730733160606,0.073181,68361.0,68349.0,0.032]
[1730733160607,0.073183,68359.0,68354.0,0.073188]
[1730733160806,0.073183,68359.0,68349.0,0.032]
[1730733161409,0.073183,68359.0,68357.0,0.073185]
[1730733161803,0.073183,68359.0,68358.0,0.07537815]
[1730733162396,0.073183,68359.0,68324.0,0.43303184]
[1730733162397,0.73888,68359.0,68324.0,0.43303184]
[1730733162705,0.3608,68333.0,68332.0,0.103712]
[1730733163702,0.3608,68341.0,68340.0,0.073203]
[1730733165211,0.3618,68341.0,68340.0,0.073203]
[1730733165903,0.3628,68341.0,68340.0,0.087203]
[1730733166206,0.3628,68341.0,68340.0,0.014]
[1730733166515,0.3628,68341.0,68340.0,0.087203]
[1730733168498,0.002,68341.0,68340.0,0.087203]
[1730733168695,0.3608,68355.0,68354.0,0.073188]
[1730733168902,0.02078056,68363.0,68358.0,0.073184]
[1730733169099,0.073181,68361.0,68358.0,0.073184]
[1730733169611,0.3608,68362.0,68358.0,0.073184]
[1730733170509,1e-06,68376.0,68375.0,0.073166]
[1730733170806,1e-06,68376.0,68375.0,1.24764619]
[1730733171110,0.29851047,68399.0,68375.0,0.73572019]
[1730733171307,0.073145,68395.0,68394.0,0.073144]
[1730733172308,0.073148,68392.0,68390.0,0.073149]
[1730733172607,0.433949,68391.0,68390.0,0.073149]
[1730733173013,0.3608,68391.0,68390.0,0.073149]
[1730733173517,0.3608,68391.0,68390.0,0.075149]
[1730733173818,0.28831047,68399.0,68398.0,0.073141]
[1730733175916,0.28831047,68399.0,68398.0,0.078141]
[1730733176415,0.29031047,68399.0,68398.0,0.078141]
[1730733177116,0.29031047,68399.0,68398.0,0.077141]
[1730733177307,0.28831047,68399.0,68398.0,0.079141]
[1730733178209,0.28831047,68399.0,68398.0,0.077141]
[1730733178412,0.28831047,68399.0,68398.0,0.079141]
[1730733179213,0.36145047,68399.0,68398.0,0.006]
[1730733180307,0.36145047,68399.0,68398.0,0.077141]
[1730733180515,0.28831047,68399.0,68398.0,0.077141]
[1730733181621,0.29431047,68399.0,68398.0,0.073141]
[1730733182619,0.006,68399.0,68398.0,0.073141]
[1730733182821,0.006,68399.0,68398.0,0.074141]
[1730733182822,0.003,68399.0,68398.0,0.074141]
[1730733183211,0.07314,68399.0,68398.0,0.001]
[1730733183407,0.073141,68398.0,68397.0,0.073142]
[1730733185720,0.073144,68396.0,68395.0,0.073143]
[1730733186023,0.433944,68396.0,68395.0,0.073143]
[1730733187716,0.433944,68396.0,68395.0,0.074143]
[1730733188519,0.433944,68396.0,68395.0,0.075143]
[1730733189819,0.45054658,68396.0,68395.0,0.074143]
[1730733190716,0.45054658,68396.0,68395.0,0.075143]
[1730733191123,0.88918658,68396.0,68395.0,0.002]
[1730733191322,0.88918658,68396.0,68387.0,0.433953]
[1730733191323,0.073152,68388.0,68387.0,0.433953]
[1730733191528,0.37740258,68396.0,68387.0,0.3608]
[1730733191729,0.37740258,68396.0,68395.0,0.073144]
[1730733191730,0.45054758,68396.0,68395.0,0.073144]
[1730733192333,0.073181,68361.0,68347.0,0.14568657]
[1730733192627,0.073181,68361.0,68346.0,0.073197]
[1730733192628,0.073183,68359.0,68346.0,0.073197]
[1730733192818,0.57156019,68354.0,68344.0,0.0301]
[1730733193017,0.073198,68346.0,68343.0,0.01686417]
[1730733193218,0.57156019,68354.0,68337.0,0.15736]
[1730733193425,0.57156019,68354.0,68348.0,0.073194]
[1730733193426,0.07319,68353.0,68348.0,0.073194]
[1730733193631,0.3608,68354.0,68351.0,0.073191]
[1730733193820,0.073191,68352.0,68347.0,0.073196]
[1730733194021,0.073191,68352.0,68348.0,0.073194]
[1730733194330,0.073192,68351.0,68348.0,0.073194]
[1730733194927,0.21076019,68353.0,68340.0,0.3608]
[1730733195129,0.21076019,68345.0,68340.0,0.073203]
[1730733195337,0.073207,68337.0,68333.0,0.1574]
[1730733195516,0.073207,68337.0,68336.0,0.073208]
[1730733196224,0.073202,68341.0,68340.0,0.014]
[1730733196744,0.073202,68341.0,68333.0,0.1574]
[1730733196745,0.073202,68341.0,68338.0,0.073205]
[1730733196927,0.21076019,68345.0,68338.0,0.073205]
[1730733197126,0.073204,68339.0,68338.0,0.073205]
[1730733197632,0.073201,68342.0,68338.0,0.073205]
[1730733197829,0.21076019,68345.0,68338.0,0.073205]
[1730733198129,0.21076019,68345.0,68336.0,0.001]
[1730733198130,0.073207,68337.0,68336.0,0.001]
[1730733198428,0.014,68341.0,68340.0,0.073203]
[1730733198934,0.095202,68341.0,68340.0,0.001]
[1730733199123,0.095202,68341.0,68340.0,0.074203]
[1730733199632,0.014,68341.0,68337.0,0.073206]
[1730733199937,0.3608,68354.0,68337.0,0.073206]
[1730733199938,0.00116,68358.0,68340.0,0.3608]
[1730733200233,0.3608,68356.0,68343.0,0.05805479]
[1730733200533,0.073191,68352.0,68348.0,0.073195]
[1730733200735,0.073186,68356.0,68342.0,0.41885479]
[1730733200919,0.073187,68355.0,68350.0,0.073192]
[1730733201122,0.073187,68355.0,68351.0,0.073191]
[1730733201627,0.21076019,68359.0,68349.0,0.3608]
[1730733202019,0.01649225,68361.0,68349.0,0.3608]
[1730733202230,0.3608,68363.0,68360.0,0.073182]
[1730733203133,0.37729225,68363.0,68362.0,0.07318]
[1730733203421,0.21076019,68365.0,68364.0,0.073178]
[1730733205033,0.22698572,68365.0,68364.0,0.073178]
[1730733205235,0.00219492,68378.0,68377.0,0.073164]
[1730733205426,0.00219492,68378.0,68364.0,0.59628]
[1730733205427,0.073164,68377.0,68374.0,0.073167]
[1730733205626,0.073164,68377.0,68364.0,0.15744]
[1730733205835,0.073168,68373.0,68367.0,0.073174]
[1730733206029,0.433973,68368.0,68367.0,0.073174]
[1730733207235,0.3608,68368.0,68365.0,0.073176]
[1730733207530,0.073175,68366.0,68365.0,0.073176]
[1730733208235,0.073177,68365.0,68364.0,0.001]
[1730733209135,0.073177,68365.0,68364.0,0.074178]
[1730733209340,0.074177,68365.0,68364.0,0.073178]
[1730733210232,0.074177,68365.0,68364.0,0.074178]
[1730733211339,0.073189,68353.0,68352.0,0.00219439]
[1730733211540,1.00554919,68353.0,68352.0,0.00219439]
[1730733211740,1.00554919,68353.0,68352.0,0.07538439]
[1730733211943,1.69554919,68353.0,68352.0,0.07538439]
[1730733212136,1.484789,68353.0,68352.0,0.07538439]
[1730733212334,1.4116,68353.0,68352.0,0.07538439]
[1730733212528,1.4126,68353.0,68352.0,0.08638439]
[1730733212930,1.0518,68353.0,68352.0,0.08638439]
[1730733213233,1.0528,68353.0,68352.0,0.09838439]
[1730733213433,0.3628,68353.0,68352.0,0.09838439]
[1730733214141,0.001,68353.0,68352.0,0.08938439]
[1730733214937,0.3608,68356.0,68355.0,0.073187]
[1730733215434,0.00108,68363.0,68352.0,0.07838439]
[1730733215635,0.00219492,68378.0,68377.0,0.073164]
[1730733216536,0.00219492,68378.0,68377.0,0.433964]
[1730733216941,0.3608,68387.0,68386.0,0.073154]
[1730733217132,0.3608,68387.0,68382.0,0.073156]
[1730733217333,0.3608,68387.0,68385.0,0.073155]
[1730733217334,0.073155,68386.0,68385.0,0.073155]
[1730733217633,0.36156,68387.0,68386.0,0.073154]
[1730733217833,0.37710955,68387.0,68386.0,0.073154]
[1730733218945,0.38310955,68387.0,68386.0,0.074154]
[1730733219334,0.39210955,68387.0,68386.0,0.075154]
[1730733220241,0.67602274,68387.0,68386.0,0.075154]
[1730733221142,0.67602274,68387.0,68386.0,0.002]
[1730733221640,0.07316,68381.0,68374.0,0.15656]
[1730733221839,0.3608,68380.0,68379.0,0.073162]
[1730733223039,0.3668,68380.0,68379.0,0.074162]
[1730733223645,0.006,68380.0,68379.0,0.074162]
[1730733224746,0.006,68380.0,68379.0,0.434962]
[1730733224936,0.00661376,68381.0,68380.0,0.511881]
[1730733225139,0.0102,68401.0,68380.0,0.43872]
[1730733225440,0.073138,68401.0,68400.0,0.073139]
[1730733226235,0.3608,68401.0,68400.0,0.073139]
[1730733226440,0.36299394,68403.0,68402.0,0.073137]
[1730733226638,0.00219394,68403.0,68402.0,0.073137]
[1730733229444,0.07532994,68403.0,68402.0,0.073137]
[1730733230248,0.07532994,68403.0,68394.0,0.15652]
[1730733230445,0.073142,68398.0,68397.0,0.073142]
[1730733230855,0.4386,68398.0,68384.0,0.00084]
[1730733231041,0.4386,68398.0,68375.0,0.3608]
[1730733231042,0.073158,68383.0,68382.0,0.073155]
[1730733231349,0.073157,68384.0,68383.0,0.073156]
[1730733233047,0.073159,68382.0,68381.0,0.073159]
[1730733234951,0.074159,68382.0,68381.0,0.073159]
[1730733235549,0.073163,68379.0,68378.0,0.073163]
[1730733236750,0.076159,68382.0,68381.0,0.073159]
[1730733236951,0.0930744,68382.0,68381.0,0.073159]
[1730733237260,0.0900744,68382.0,68381.0,0.073159]
[1730733237447,0.0169154,68382.0,68381.0,0.073159]
[1730733237751,0.001,68379.0,68378.0,0.073163]
[1730733239254,0.073159,68382.0,68378.0,0.073163]
[1730733239458,0.075159,68382.0,68381.0,0.073159]
[1730733240041,0.073159,68382.0,68381.0,0.073159]
[1730733240450,0.073162,68379.0,68378.0,0.006]
[1730733240755,0.073162,68379.0,68360.0,0.073182]
[1730733240756,0.073164,68378.0,68372.0,0.073169]
[1730733240958,0.073171,68371.0,68370.0,0.07317]
[1730733242045,0.073173,68369.0,68368.0,0.073173]
[1730733242446,0.073169,68372.0,68371.0,0.073169]
[1730733242957,0.3608,68373.0,68366.0,0.04363875]
[1730733243156,0.073171,68370.0,68368.0,0.073172]
[1730733243361,0.073171,68370.0,68369.0,0.073172]
[1730733244460,0.073171,68370.0,68369.0,0.11681075]
[1730733244956,0.073171,68370.0,68369.0,0.073172]
[1730733245356,0.003,68372.0,68371.0,0.07317]
[1730733245656,0.0313,68378.0,68371.0,0.43397]
[1730733245856,0.0313,68378.0,68377.0,0.073164]
[1730733246256,0.433955,68386.0,68385.0,0.073155]
[1730733246564,0.073158,68383.0,68381.0,0.073158]
[1730733246752,0.073159,68382.0,68381.0,0.073158]
[1730733248162,0.082159,68382.0,68381.0,0.074158]
[1730733248358,0.009,68382.0,68381.0,0.074158]
[1730733248971,0.3698,68382.0,68381.0,0.001]
[1730733249272,0.3698,68382.0,68365.0,0.073177]
[1730733249273,0.073178,68366.0,68365.0,0.073177]
[1730733249464,0.3608,68368.0,68358.0,0.10401792]
[1730733249652,0.57156019,68362.0,68358.0,0.00219416]
[1730733249851,0.073183,68359.0,68358.0,0.00219416]
[1730733250654,0.073187,68356.0,68350.0,0.3608]
[1730733250861,0.073183,68359.0,68358.0,0.007]
[1730733251050,0.073183,68359.0,68358.0,0.013]
[1730733251967,0.3618,68362.0,68358.0,0.013]
[1730733252171,0.001,68362.0,68361.0,0.073181]
[1730733252464,0.7222,68367.0,68365.0,0.073176]
[1730733252764,0.7214,68367.0,68365.0,0.073176]
[1730733253175,0.73479687,68367.0,68358.0,0.007]
[1730733253351,0.73479687,68367.0,68366.0,0.073175]
[1730733253554,0.74279687,68367.0,68366.0,0.073175]
[1730733254152,0.04479687,68367.0,68366.0,0.073175]
[1730733254369,0.073175,68366.0,68365.0,0.001]
[1730733254668,0.05279687,68367.0,68365.0,0.001]
[1730733254879,0.12597187,68367.0,68366.0,0.073175]
[1730733255166,0.073175,68366.0,68365.0,0.001]
[1730733255352,0.073175,68366.0,68365.0,0.002]
[1730733255766,0.073175,68366.0,68365.0,0.074177]
[1730733256063,0.05279687,68367.0,68366.0,0.073175]
[1730733256268,0.05479687,68367.0,68366.0,0.074175]
[1730733256566,0.01,68367.0,68366.0,0.074175]
[1730733256787,0.01,68367.0,68366.0,0.434975]
[1730733256955,0.073172,68369.0,68368.0,0.073173]
[1730733257163,0.0326,68376.0,68372.0,0.073169]
[1730733257164,0.08642606,68373.0,68372.0,0.073169]
[1730733257364,0.0326,68376.0,68375.0,0.073166]
[1730733257675,0.04609109,68376.0,68375.0,0.073166]
[1730733258062,0.03933769,68376.0,68375.0,0.073166]
[1730733258574,0.01349109,68376.0,68375.0,0.073166]
[1730733258870,0.433964,68377.0,68375.0,0.073166]
[1730733259769,0.433964,68377.0,68375.0,0.074166]
[1730733259770,0.006,68376.0,68375.0,0.074166]
[1730733259975,0.014,68376.0,68375.0,0.075166]
[1730733260571,0.449964,68377.0,68375.0,0.075166]
[1730733260973,0.016,68377.0,68376.0,0.073165]
[1730733261970,0.016,68377.0,68376.0,0.11692198]
[1730733262273,0.007,68377.0,68376.0,0.073165]
[1730733262470,0.01360279,68380.0,68379.0,0.073162]
[1730733262676,0.073165,68377.0,68376.0,0.073165]
[1730733263365,0.073165,68377.0,68375.0,0.002]
[1730733263366,0.004,68377.0,68375.0,0.001]
[1730733263560,0.073165,68376.0,68375.0,0.001]
[1730733263862,0.073165,68376.0,68375.0,0.073166]
[1730733264267,0.011,68377.0,68370.0,0.04376819]
[1730733264576,0.073177,68365.0,68364.0,0.11694519]
[1730733264775,0.073177,68365.0,68364.0,0.073177]
[1730733265669,0.073173,68369.0,68367.0,0.073174]
[1730733265863,0.0332,68370.0,68369.0,0.073172]
[1730733266065,0.02437193,68377.0,68367.0,0.04376819]
[1730733266369,0.02437193,68377.0,68373.0,0.073168]
[1730733266370,0.073167,68374.0,68373.0,0.073168]
[1730733266570,0.01737193,68377.0,68376.0,0.073165]
[1730733266768,0.01337193,68377.0,68376.0,0.073165]
[1730733267068,0.3608,68378.0,68377.0,0.073164]
[1730733267870,0.37384678,68378.0,68377.0,0.073164]
[1730733268470,0.0318,68384.0,68376.0,0.001]
[1730733268676,0.0318,68384.0,68383.0,0.073157]
[1730733268677,0.11794028,68384.0,68383.0,0.073157]
[1730733270175,0.073161,68380.0,68379.0,0.073161]
[1730733270673,0.073161,68380.0,68377.0,0.002]
[1730733270674,0.04478428,68384.0,68377.0,0.002]
[1730733270876,0.04478428,68384.0,68383.0,0.073157]
[1730733271073,0.01298428,68384.0,68383.0,0.073157]
[1730733271270,0.073153,68388.0,68386.0,0.073153]
[1730733271670,0.073153,68387.0,68386.0,0.073153]
[1730733271870,0.012,68384.0,68383.0,0.075157]
[1730733272277,0.073156,68385.0,68377.0,0.3608]
[1730733272471,0.073156,68385.0,68384.0,0.073156]
[1730733274577,0.37627656,68390.0,68384.0,0.073156]
[1730733274578,0.00088,68401.0,68400.0,0.073139]
[1730733274793,0.0304,68406.0,68389.0,0.14056823]
[1730733275083,0.073136,68403.0,68394.0,0.073145]
[1730733275384,0.50212823,68404.0,68395.0,0.073144]
[1730733275575,0.50136823,68404.0,68395.0,0.073144]
[1730733275877,0.073143,68396.0,68395.0,0.073144]
[1730733276085,0.433943,68396.0,68395.0,0.073144]
[1730733276384,0.433944,68396.0,68395.0,0.073144]
[1730733276779,0.433944,68396.0,68395.0,0.074144]
[1730733277477,0.3608,68396.0,68395.0,0.074144]
[1730733277885,0.3536,68396.0,68395.0,0.075144]
[1730733278085,0.3536,68396.0,68395.0,0.074144]
[1730733278285,0.3656,68396.0,68395.0,0.075144]
[1730733278782,0.43864,68395.0,68355.0,0.073187]
[1730733278987,0.43864,68395.0,68350.0,0.00219443]
[1730733278988,0.14056823,68356.0,68350.0,0.00219443]
[1730733279183,0.3608,68351.0,68350.0,0.00219443]
[1730733279385,1.0508,68351.0,68350.0,0.00219443]
[1730733279586,1.123992,68351.0,68350.0,0.00219443]
[1730733279975,1.26456023,68351.0,68350.0,0.00219443]
[1730733280487,1.40512846,68351.0,68315.0,0.21379723]
[1730733280689,0.14056823,68334.0,68328.0,0.15164]
[1730733280982,0.14056823,68334.0,68331.0,0.073213]
[1730733281392,0.57180094,68333.0,68326.0,0.073218]
[1730733281578,0.57180094,68333.0,68327.0,0.073217]
[1730733281777,0.64501194,68333.0,68327.0,0.073217]
[1730733282189,0.073212,68332.0,68331.0,0.014]
[1730733282378,0.073212,68332.0,68331.0,0.015]